bitfinex-derivatives/quotes_ETHF0:USTF0_20210109
["timestamp","ask_amount","ask_price","bid_price","bid_amount"]
[1610173641112,1.607,1184.7,1184.6,50.0]
[1610173641311,1.607,1184.7,1184.0,50.0]
[1610173641512,4.26907477,1184.7,1184.0,50.0]
[1610173641812,4.00959,1184.1,1184.0,50.0]
[1610173642213,4.00959,1184.1,1183.5,2.2081]
[1610173642412,4.00959,1184.1,1183.9,50.0]
[1610173642613,2.66697054,1184.0,1183.9,50.0]
[1610173642813,2.66697054,1184.0,1183.2,2.1811]
[1610173643015,15.96040787,1184.0,1183.7,50.0]
[1610173643214,13.28346427,1183.8,1183.7,50.0]
[1610173643414,13.28346427,1183.8,1182.6,50.8695]
[1610173643615,13.28346427,1183.8,1183.7,50.0]
[1610173644015,4.00959,1183.8,1183.0,4.00959]
[1610173644214,4.00959,1183.8,1183.7,50.0]
[1610173644414,4.00959,1183.8,1183.4,50.0]
[1610173644616,22.12288821,1183.8,1183.4,50.0]
[1610173644814,6.69038412,1183.8,1183.4,50.0]
[1610173645015,19.4519408,1183.8,1183.7,50.0]
[1610173645217,19.4519408,1183.8,1183.5,50.0]
[1610173645417,6.6915739,1183.8,1183.5,50.0]
[1610173645618,6.6915739,1183.8,1183.1,50.0]
[1610173645818,16.08054877,1183.7,1183.2,50.0]
[1610173646218,2.397,1183.7,1183.2,50.0]
[1610173646418,42.64729316,1183.5,1183.3,50.0]
[1610173646718,42.64729316,1183.5,1183.1,50.0]
[1610173647121,42.64729316,1183.5,1183.2,50.0]
[1610173647519,42.64729316,1183.5,1183.1,50.0]
[1610173647718,2.69386118,1183.6,1183.1,50.0]
[1610173647919,4.00959,1183.2,1183.1,50.0]
[1610173648123,4.00959,1183.2,1182.8,4.00959]
[1610173648520,4.00959,1183.2,1183.1,50.0]
[1610173648720,4.00959,1183.2,1182.9,50.0]
[1610173648920,4.00959,1183.2,1183.1,50.0]
[1610173649321,4.00959,1183.2,1183.0,50.0]
[1610173649521,4.00959,1183.2,1182.7,2.0052]
[1610173649722,4.00959,1183.2,1183.1,50.0]
[1610173650123,6.68767164,1183.2,1183.1,50.0]
[1610173650523,11.42326774,1183.2,1183.0,50.0]
[1610173650924,4.00959,1183.2,1183.0,50.0]
[1610173651123,2.68906994,1183.1,1183.0,50.0]
[1610173651323,2.68906994,1183.1,1182.9,50.0]
[1610173651523,17.28585517,1183.2,1182.5,50.0]
[1610173651924,4.00959,1182.6,1182.5,50.0]
[1610173652125,4.00959,1182.6,1182.1,2.447]
[1610173652323,4.00959,1182.6,1182.2,50.0]
[1610173652724,1.6056,1182.9,1182.3,50.0]
[1610173652925,42.49633177,1183.2,1182.3,50.0]
[1610173653125,44.7639513,1183.3,1182.2,50.0]
[1610173653327,44.7639513,1183.3,1182.4,50.0]
[1610173653727,44.7639513,1183.3,1182.4,2.4697]
[1610173653927,2.2211,1183.3,1183.0,4.00959]
[1610173654127,42.49859363,1183.4,1183.0,4.00959]
[1610173654328,42.47868618,1183.5,1183.0,4.00959]
[1610173654528,42.47868618,1183.5,1183.1,50.0]
[1610173654727,2.7043899,1183.6,1183.1,50.0]
[1610173654728,42.51708475,1183.6,1183.1,50.0]
[1610173654927,42.54913319,1183.7,1183.2,50.0]
[1610173655327,42.6098429,1183.8,1183.1,50.0]
[1610173655727,42.6098429,1183.8,1183.3,50.0]
[1610173655930,42.6098429,1183.8,1183.0,6.27869]
[1610173655931,4.00959,1183.4,1183.1,50.0]
[1610173656329,4.00959,1183.4,1183.0,2.2691]
[1610173656629,4.00959,1183.4,1183.2,50.0]
[1610173657028,4.00959,1183.4,1182.7,1.8988]
[1610173657029,46.62230125,1183.4,1182.7,1.8988]
[1610173657228,46.62230125,1183.4,1183.3,50.0]
[1610173657229,6.73692568,1183.4,1183.3,50.0]
[1610173657428,6.73692568,1183.4,1183.2,50.0]
[1610173657632,24.91493226,1183.4,1183.2,50.0]
[1610173657829,24.91493226,1183.4,1183.3,50.0]
[1610173658028,6.73692568,1183.4,1182.5,50.0]
[1610173658228,6.73692568,1183.4,1183.3,50.0]
[1610173658530,6.73692568,1183.4,1182.6,50.0]
[1610173658829,6.73692568,1183.4,1182.7,50.0]
[1610173659030,42.70053421,1183.3,1182.7,50.0]
[1610173659228,42.70053421,1183.3,1182.5,50.0]
[1610173659530,42.70053421,1183.3,1182.8,50.0]
[1610173659831,42.70053421,1183.3,1182.5,50.0]
[1610173660035,4.00959,1182.7,1182.5,50.0]
[1610173660231,42.70053421,1183.3,1182.5,50.0]
[1610173660433,42.70053421,1183.3,1182.9,50.0]
[1610173660631,42.70053421,1183.3,1182.4,58.03669]
[1610173660830,42.70053421,1183.3,1183.0,50.0]
[1610173661230,42.70053421,1183.3,1182.4,58.03669]
[1610173661431,42.70053421,1183.3,1183.1,50.0]
[1610173661632,42.70053421,1183.3,1182.5,50.0]
[1610173661831,42.7920587,1183.4,1182.4,58.03669]
[1610173662030,42.7920587,1183.4,1183.2,50.0]
[1610173662230,42.7920587,1183.4,1182.9,4.00959]
[1610173662431,42.7920587,1183.4,1183.3,50.0]
[1610173662833,42.7920587,1183.4,1182.7,1.706]
[1610173663032,42.7920587,1183.4,1183.3,50.0]
[1610173663434,42.7920587,1183.4,1182.7,1.706]
[1610173663637,42.7920587,1183.4,1183.3,50.0]
[1610173664036,46.8016487,1183.4,1182.9,4.00959]
[1610173664536,4.00959,1183.4,1183.3,50.0]
[1610173664937,4.00959,1183.4,1182.9,4.00959]
[1610173665338,4.00959,1183.4,1183.3,50.0]
[1610173665538,4.00959,1183.4,1182.9,4.00959]
[1610173665838,4.00959,1183.4,1183.3,50.0]
[1610173666241,4.00959,1183.4,1183.2,50.0]
[1610173666439,4.00959,1183.4,1183.3,50.0]
[1610173666839,4.00959,1183.4,1183.0,50.0]
[1610173667240,4.00959,1183.4,1183.3,50.0]
[1610173667441,4.00959,1183.4,1183.0,50.0]
[1610173667641,4.00959,1183.4,1183.0,97.7213]
[1610173667841,4.00959,1183.4,1183.3,50.0]
[1610173668041,4.00959,1183.4,1183.3,54.00959]
[1610173669242,4.00959,1183.4,1183.3,50.0]
[1610173669842,56.55899,1183.4,1183.2,50.0]
[1610173670049,99.18359225,1183.4,1183.2,50.0]
[1610173670447,42.58208657,1183.3,1183.1,50.0]
[1610173670647,42.58208657,1183.3,1182.9,50.0]
[1610173670847,29.51694372,1183.3,1182.9,50.0]
[1610173671047,29.51694372,1183.3,1182.5,50.0]
[1610173671247,103.58232427,1183.0,1182.9,50.0]
[1610173671449,63.4667,1183.0,1182.4,50.0]
[1610173671847,79.64492986,1183.0,1182.4,50.0]
[1610173672047,79.64492986,1183.0,1182.5,50.0]
[1610173672249,42.35265437,1182.8,1181.7,50.0]
[1610173672449,31.10073837,1182.7,1181.7,50.0]
[1610173672649,32.77343837,1182.7,1182.5,50.0]
[1610173672850,43.98967459,1182.7,1182.5,50.0]
[1610173673048,43.98967459,1182.7,1182.6,50.0]
[1610173673249,32.77343837,1182.7,1182.1,68.7283]
[1610173673649,32.77343837,1182.7,1182.6,50.0]
[1610173673850,32.77343837,1182.7,1182.1,68.7283]
[1610173673851,1.6727,1182.7,1182.1,68.7283]
[1610173674051,4.00959,1182.4,1182.3,4.00959]
[1610173674451,4.00959,1182.4,1182.1,68.7283]
[1610173674650,4.00959,1182.4,1182.3,50.0]
[1610173675252,4.00959,1182.4,1182.2,50.0]
[1610173675452,4.00959,1182.4,1182.3,50.0]
[1610173675852,4.00959,1182.4,1182.2,50.0]
[1610173676255,4.00959,1182.4,1182.3,50.0]
[1610173676453,4.00959,1182.4,1182.2,50.0]
[1610173676853,4.00959,1182.4,1182.3,50.0]
[1610173677252,4.00959,1182.4,1182.2,50.0]
[1610173677453,44.79143152,1183.0,1182.2,50.0]
[1610173677652,44.79143152,1183.0,1182.3,50.0]
[1610173677952,4.00959,1182.7,1182.6,4.00959]
[1610173678455,4.00959,1182.7,1182.6,54.00959]
[1610173678654,4.00959,1182.7,1182.6,50.0]
[1610173680356,44.26662847,1183.1,1182.6,50.0]
[1610173680556,1.7873,1183.1,1182.7,63.4278]
[1610173680756,1.7873,1183.1,1182.7,113.4278]
[1610173680957,42.5035513,1183.4,1182.7,113.4278]
[1610173681356,10.47897259,1183.5,1182.7,65.3721]
[1610173681357,42.51761861,1183.5,1182.7,65.3721]
[1610173681556,42.51761861,1183.5,1182.8,50.0]
[1610173681757,45.91388735,1183.6,1182.8,80.0]
[1610173681958,45.91388735,1183.6,1183.5,4.00959]
[1610173681959,3.405,1183.6,1183.5,4.00959]
[1610173682157,4.00959,1183.7,1183.5,4.00959]
[1610173682356,4.00959,1183.7,1183.5,54.00959]
[1610173682557,4.00959,1183.7,1183.6,50.0]
[1610173682757,42.51931554,1184.0,1183.6,50.0]
[1610173682957,42.50954047,1184.1,1183.6,50.0]
[1610173683158,42.50954047,1184.1,1183.7,50.0]
[1610173683358,42.49352255,1184.2,1183.7,59.1864]
[1610173683557,42.49352255,1184.2,1183.6,2.3499]
[1610173683558,42.49352255,1184.2,1183.8,50.0]
[1610173683758,42.48329421,1184.3,1183.9,50.5348]
[1610173683959,42.48329421,1184.3,1184.2,4.00959]
[1610173684156,2.86506687,1184.4,1184.2,4.00959]
[1610173684157,42.48890504,1184.4,1184.2,4.00959]
[1610173684358,13.31489663,1184.6,1184.2,4.00959]
[1610173684359,42.5236469,1184.6,1184.2,15.70409]
[1610173684561,42.5236469,1184.6,1184.3,50.0]
[1610173684759,17.42444857,1185.3,1184.3,50.0]
[1610173684760,42.54885765,1184.7,1184.3,50.0]
[1610173685160,42.54885765,1184.7,1184.4,50.0]
[1610173685359,42.54885765,1184.7,1184.2,2.4395]
[1610173685360,42.54885765,1184.7,1184.3,50.0]
[1610173685760,42.52875092,1184.6,1184.5,50.0]
[1610173685961,46.53834092,1184.6,1184.3,50.0]
[1610173686363,42.53783665,1184.5,1184.4,50.0]
[1610173686664,42.53783665,1184.5,1184.3,50.0]
[1610173686865,46.5465172,1184.6,1184.3,50.0]
[1610173687066,42.5369272,1184.6,1184.3,50.0]
[1610173687266,42.5369272,1184.6,1184.4,50.0]
[1610173687470,42.5369272,1184.6,1184.5,50.0]
[1610173687867,42.5499354,1184.7,1184.5,50.0]
[1610173688068,42.5499354,1184.7,1184.6,4.00959]
[1610173688267,42.5499354,1184.7,1184.6,54.00959]
[1610173688467,42.58677331,1184.8,1184.6,54.00959]
[1610173688767,42.58169121,1184.9,1184.6,54.00959]
[1610173688969,42.58169121,1184.9,1184.7,50.0]
[1610173689367,42.58169121,1184.9,1184.8,50.0]
[1610173689869,42.58169121,1184.9,1184.7,50.0]
[1610173690068,4.00959,1184.8,1184.6,71.17299]
[1610173690269,4.00959,1184.8,1184.6,67.1634]
[1610173690468,4.00959,1184.8,1184.7,50.0]
[1610173691572,42.6357142,1185.0,1184.7,50.0]
[1610173691773,42.6357142,1185.0,1184.8,50.0]
[1610173691972,42.6357142,1185.0,1184.9,4.00959]
[1610173692372,42.6357142,1185.0,1184.9,54.00959]
[1610173692973,43.20080023,1185.0,1184.9,54.00959]
[1610173693475,43.20080023,1185.0,1184.9,50.0]
[1610173694076,47.21039023,1185.0,1184.9,50.0]
[1610173694276,4.00959,1185.0,1184.9,50.0]
[1610173694577,6.88681677,1185.0,1184.9,50.0]
[1610173694978,47.29957148,1185.0,1184.9,50.0]
[1610173695778,43.28998148,1185.0,1184.9,50.0]
[1610173696380,43.36146679,1185.1,1185.0,51.5575]
[1610173696577,43.36146679,1185.1,1185.0,101.5575]
[1610173696781,43.35536161,1185.2,1185.0,105.56709]
[1610173696977,43.35536161,1185.2,1185.1,50.0]
[1610173697180,2.0919,1185.3,1185.1,50.0]
[1610173697384,43.35230497,1185.4,1185.1,50.0]
[1610173697580,13.40776994,1185.5,1185.0,55.56709]
[1610173697581,43.34848302,1185.5,1185.2,50.0]
[1610173697779,43.34848302,1185.5,1185.3,50.0]
[1610173698181,43.34848302,1185.5,1185.1,50.0]
[1610173698378,43.34848302,1185.5,1185.4,50.0]
[1610173698677,43.34848302,1185.5,1185.2,50.0]
[1610173698878,43.34848302,1185.5,1185.4,4.00959]
[1610173699478,43.34848302,1185.5,1185.4,54.00959]
[1610173699878,45.08786164,1185.6,1185.4,54.00959]
[1610173700080,43.34766164,1185.6,1185.4,54.00959]
[1610173700279,43.34766164,1185.6,1185.5,50.0]
[1610173701879,16.30467457,1185.7,1185.5,50.0]
[1610173702080,2.89961031,1185.7,1185.6,50.0]
[1610173702480,2.89961031,1185.7,1185.0,50.0]
[1610173702682,29.0,1185.2,1184.7,53.1528]
[1610173702881,4.00959,1185.1,1184.7,53.1528]
[1610173703081,4.00959,1185.1,1184.8,50.0]
[1610173703482,38.70130096,1185.1,1184.9,50.0]
[1610173703682,47.36778425,1185.1,1184.9,50.0]
[1610173703883,43.36215145,1185.0,1184.8,50.0]
[1610173704084,43.36215145,1185.0,1184.1,53.1793]
[1610173704482,45.59135145,1185.0,1184.9,50.0]
[1610173704682,5.14193848,1185.0,1184.3,50.0]
[1610173704881,66.1683,1184.9,1183.9,1.8552]
[1610173705084,66.1683,1184.9,1184.1,50.0]
[1610173705284,66.1683,1184.9,1184.0,50.0]
[1610173705484,43.37810293,1184.5,1183.5,2.3639]
[1610173705684,43.38173088,1184.3,1184.0,50.0]
[1610173705885,45.25653088,1184.3,1184.0,50.0]
[1610173706084,43.38647999,1184.2,1183.4,66.6099]
[1610173706485,43.31326719,1184.1,1183.8,50.0]
[1610173706685,43.31326719,1184.1,1183.6,50.0]
[1610173706884,4.00959,1183.9,1182.9,54.3753]
[1610173707286,5.65049,1183.9,1183.5,50.0]
[1610173707487,43.23489134,1183.6,1183.5,50.0]
[1610173707687,43.23489134,1183.6,1182.9,54.3753]
[1610173707888,43.25339363,1183.7,1183.5,50.0]
[1610173708286,43.25339363,1183.7,1182.9,54.3753]
[1610173708688,43.25339363,1183.7,1183.6,50.0]
[1610173709291,43.25339363,1183.7,1183.3,54.6421]
[1610173709487,15.03115804,1183.9,1183.6,50.0]
[1610173709488,44.97126637,1183.9,1183.6,50.0]
[1610173709689,1.6409,1183.9,1183.3,54.6421]
[1610173710089,1.6409,1183.9,1183.6,50.0]
[1610173710288,1.6409,1183.9,1183.4,50.0]
[1610173710489,1.6409,1183.9,1183.3,54.6421]
[1610173710688,46.79725808,1184.1,1183.7,50.0]
[1610173710888,46.79725808,1184.1,1183.5,50.0]
[1610173711090,48.49655808,1184.1,1183.4,4.00959]
[1610173711288,46.79725808,1184.1,1183.7,50.0]
[1610173711493,3.405,1184.1,1183.6,50.0]
[1610173711691,3.405,1184.1,1183.4,5.84589]
[1610173711889,3.405,1184.1,1183.7,50.0]
[1610173712092,3.405,1184.1,1183.5,50.0]
[1610173712289,3.405,1184.1,1183.4,5.84589]
[1610173712489,46.79896969,1184.1,1183.8,50.0]
[1610173712690,46.79896969,1184.1,1183.6,50.0]
[1610173712891,4.00959,1183.7,1183.4,1.8363]
[1610173713094,4.00959,1183.7,1183.6,50.0]
[1610173713491,43.40146494,1183.8,1183.1,2.3214]
[1610173713691,43.40146494,1183.8,1183.5,50.0]
[1610173713894,43.40146494,1183.8,1183.2,50.0]
[1610173714094,43.40533213,1183.7,1183.1,2.3214]
[1610173714292,43.40533213,1183.7,1183.6,50.0]
[1610173714492,43.40533213,1183.7,1183.3,50.0]
[1610173714791,43.40533213,1183.7,1183.1,2.3214]
[1610173715191,4.00959,1183.2,1183.1,2.3214]
[1610173715593,4.00959,1183.2,1182.9,63.85519]
[1610173715795,43.40570808,1183.7,1182.9,63.85519]
[1610173715993,43.40348332,1183.8,1183.1,50.0]
[1610173716193,43.40348332,1183.8,1183.0,50.0]
[1610173716393,43.40348332,1183.8,1182.9,63.85519]
[1610173716394,43.39917301,1183.9,1183.2,50.0]
[1610173716594,1.7857,1184.0,1183.2,50.0]
[1610173716795,1.7857,1184.0,1183.1,109.751]
[1610173716993,1.7857,1184.0,1183.1,59.751]
[1610173717194,4.00959,1183.6,1183.5,4.00959]
[1610173717795,4.00959,1183.6,1183.1,59.751]
[1610173718198,4.00959,1183.6,1183.5,50.0]
[1610173718397,4.00959,1183.6,1183.2,50.0]
[1610173718597,4.00959,1183.6,1183.1,59.751]
[1610173718798,4.00959,1183.6,1183.5,50.0]
[1610173718998,4.00959,1183.6,1183.3,50.0]
[1610173719200,43.39794459,1183.9,1183.5,50.0]
[1610173719399,45.18164495,1184.0,1183.4,4.00959]
[1610173719800,1.7857,1184.0,1183.6,50.0]
[1610173720002,43.39462451,1184.1,1183.5,50.0]
[1610173720200,43.39462451,1184.1,1183.4,4.00959]
[1610173720399,43.39462451,1184.1,1183.7,50.0]
[1610173720802,43.39462451,1184.1,1183.4,4.00959]
[1610173721001,43.39462451,1184.1,1183.8,50.0]
[1610173721201,4.00959,1183.9,1183.8,50.0]
[1610173721401,4.00959,1183.9,1183.1,2.0727]
[1610173721802,4.00959,1183.9,1183.8,50.0]
[1610173722003,4.00959,1183.9,1183.1,1.9722]
[1610173722202,6.60019,1183.9,1183.2,50.0]
[1610173722406,43.39974725,1183.8,1183.2,50.0]
[1610173722604,43.40357937,1183.7,1183.3,50.0]
[1610173723204,4.00959,1183.4,1183.2,50.0]
[1610173723405,4.00959,1183.4,1183.0,65.8603]
[1610173724205,4.00959,1183.4,1183.3,50.0]
[1610173724407,4.00959,1183.4,1183.0,65.8603]
[1610173724806,4.00959,1183.4,1183.3,50.0]
[1610173725006,4.00959,1183.4,1183.0,65.8603]
[1610173725207,5.71119,1183.4,1183.0,65.8603]
[1610173725405,5.71119,1183.4,1183.3,50.0]
[1610173725607,1.7016,1183.4,1183.3,50.0]
[1610173726707,2.5906,1183.9,1183.3,50.0]
[1610173727108,2.5906,1183.9,1183.4,50.0]
[1610173727308,4.00959,1183.5,1183.4,54.00959]
[1610173727510,4.00959,1183.5,1183.4,4.00959]
[1610173727708,4.00959,1183.5,1183.4,50.0]
[1610173732515,47.41761982,1183.5,1183.4,50.0]
[1610173733017,4.00959,1183.5,1183.4,50.0]
[1610173733414,7.05543391,1183.5,1183.4,50.0]
[1610173734015,20.48159821,1183.5,1183.4,50.0]
[1610173734415,62.1831,1183.4,1183.0,50.0]
[1610173734615,2.5284,1183.4,1183.0,50.0]
[1610173734816,2.5284,1183.4,1181.7,0.25750785]
[1610173734817,43.38706308,1183.1,1182.3,50.0]
[1610173735014,50.9355,1183.0,1182.3,50.0]
[1610173735217,4.00959,1182.4,1182.2,50.0]
[1610173735417,5.99909,1182.4,1182.3,50.0]
[1610173735617,5.99909,1182.4,1181.6,50.0]
[1610173736222,5.99909,1182.4,1182.0,50.0]
[1610173736819,5.99909,1182.4,1181.6,50.0]
[1610173737020,49.15155431,1182.4,1181.6,50.0]
[1610173737219,49.15155431,1182.4,1181.7,50.0]
[1610173737220,45.14196431,1182.4,1181.7,50.0]
[1610173737621,43.10173614,1182.3,1181.7,50.0]
[1610173737821,43.10173614,1182.3,1181.6,50.0]
[1610173738020,43.05421956,1182.2,1181.8,50.0]
[1610173738523,43.05421956,1182.2,1181.6,50.0]
[1610173738724,43.05421956,1182.2,1181.7,50.0]
[1610173739122,43.1121329,1182.3,1181.7,50.0]
[1610173739322,4.00959,1181.8,1181.7,50.0]
[1610173739527,4.00959,1181.8,1181.0,5.75479]
[1610173739726,4.00959,1181.8,1181.7,50.0]
[1610173740127,4.00959,1181.8,1181.1,50.0]
[1610173740328,4.00959,1181.8,1181.2,50.0]
[1610173740730,4.00959,1181.8,1181.1,50.0]
[1610173741129,4.00959,1181.8,1181.3,50.0]
[1610173741331,4.00959,1181.4,1181.3,54.00959]
[1610173741531,2.031,1182.0,1181.3,4.00959]
[1610173741730,2.031,1182.0,1181.4,50.0]
[1610173741932,1.9895,1182.4,1181.4,80.0]
[1610173742131,43.21768228,1182.6,1181.5,50.0]
[1610173742332,43.32990534,1182.8,1181.5,107.6075]
[1610173742531,43.32990534,1182.8,1181.6,50.0]
[1610173742733,43.40533333,1182.9,1181.6,32.2133]
[1610173742931,43.40533333,1182.9,1181.7,50.0]
[1610173743131,15.65607028,1183.1,1181.7,50.0]
[1610173743132,43.42726896,1183.0,1181.7,50.0]
[1610173743333,4.00959,1182.7,1182.6,4.00959]
[1610173743731,4.00959,1182.7,1182.6,50.0]
[1610173744934,4.00959,1182.7,1182.5,50.0]
[1610173745133,4.00959,1182.7,1182.2,50.0]
[1610173745334,4.00959,1182.3,1182.2,50.0]
[1610173745533,4.00959,1182.3,1181.6,2.2133]
[1610173745733,4.00959,1182.3,1181.8,50.0]
[1610173746133,4.00959,1182.3,1181.7,50.0]
[1610173746334,6.23679,1182.3,1181.7,50.0]
[1610173746534,6.23679,1182.3,1181.9,50.0]
[1610173746734,6.23679,1182.3,1182.0,50.0]
[1610173747135,2.2272,1182.3,1181.6,2.3428]
[1610173747335,4.00959,1181.9,1181.8,4.00959]
[1610173747735,45.69783039,1182.8,1181.9,50.0]
[1610173748137,2.2578,1182.8,1181.8,4.00959]
[1610173748335,2.2578,1182.8,1182.0,50.0]
[1610173748535,2.2578,1182.8,1181.6,2.3428]
[1610173748536,2.2578,1182.8,1181.9,50.0]
[1610173748736,2.2578,1182.8,1181.6,2.3428]
[1610173748936,2.2578,1182.8,1181.7,50.0]
[1610173748937,43.38317973,1182.6,1181.7,50.0]
[1610173749139,43.38317973,1182.6,1182.0,50.0]
[1610173749337,4.00959,1182.1,1181.2,48.8263]
[1610173749535,4.00959,1182.1,1181.8,50.0]
[1610173749737,4.00959,1182.1,1181.9,50.0]
[1610173750137,4.00959,1182.1,1181.3,50.0]
[1610173750537,4.00959,1182.1,1181.4,50.0]
[1610173750938,4.00959,1182.1,1181.3,50.0]
[1610173751137,4.00959,1182.1,1181.2,48.8263]
[1610173751339,1.6289,1182.3,1181.8,4.00959]
[1610173751937,1.6289,1182.3,1181.9,50.0]
[1610173752137,1.6289,1182.3,1182.0,50.0]
[1610173752338,43.41314671,1182.6,1182.0,50.0]
[1610173752538,43.41314671,1182.6,1182.1,50.0]
[1610173752738,2.2578,1182.8,1182.1,50.0]
[1610173752939,43.42428101,1183.0,1182.0,52.2335]
[1610173753340,2.2319,1183.1,1182.9,4.00959]
[1610173753538,43.41646159,1183.2,1182.9,4.00959]
[1610173753739,45.9390665,1183.4,1182.9,4.00959]
[1610173753944,2.5284,1183.4,1183.0,50.0]
[1610173754138,4.00959,1183.6,1183.1,50.0]
[1610173754538,43.40855997,1183.7,1183.2,50.0]
[1610173754739,43.39715868,1183.8,1183.2,50.0]
[1610173754939,43.39715868,1183.8,1183.1,50.0]
[1610173755139,43.39419705,1183.9,1183.1,50.0]
[1610173755342,4.00959,1183.9,1183.8,4.00959]
[1610173755542,43.38753639,1184.1,1183.8,4.00959]
[1610173756147,43.38260256,1184.2,1183.9,50.0]
[1610173756547,43.37869481,1184.4,1184.0,50.0]
[1610173756746,43.37869481,1184.4,1184.0,52.0527]
[1610173756948,43.37598491,1184.5,1184.0,2.0527]
[1610173757145,43.37637613,1184.6,1184.1,50.0]
[1610173757344,4.00959,1184.2,1184.0,2.0527]
[1610173757947,4.00959,1184.2,1184.1,50.0]
[1610173758147,4.00959,1184.2,1183.8,50.0]
[1610173758347,4.00959,1184.2,1184.1,50.0]
[1610173758647,4.00959,1184.2,1183.9,50.0]
[1610173759047,4.00959,1184.2,1183.8,50.0]
[1610173759449,43.38271541,1184.3,1184.0,50.0]
[1610173759648,43.38271541,1184.3,1183.8,54.00959]
[1610173759948,43.38271541,1184.3,1184.1,50.0]
[1610173760148,43.38704373,1184.2,1184.1,50.0]
[1610173760350,43.38704373,1184.2,1183.9,50.0]
[1610173760547,43.38704373,1184.2,1184.0,50.0]
[1610173760947,43.38704373,1184.2,1183.8,50.0]
[1610173761147,43.38248292,1184.4,1183.8,50.0]
[1610173761348,43.38248292,1184.4,1184.3,4.00959]
[1610173761548,13.41710322,1184.6,1184.3,4.00959]
[1610173761549,43.37772321,1184.6,1184.3,4.00959]
[1610173761951,43.37772321,1184.6,1184.3,54.00959]
[1610173762148,43.37772321,1184.6,1184.4,50.0]
[1610173762550,43.37053582,1184.7,1184.5,50.0]
[1610173762955,43.3702765,1184.8,1184.4,50.0]
[1610173763153,43.3702765,1184.8,1184.6,50.0]
[1610173763354,43.3702765,1184.8,1184.7,4.00959]
[1610173763554,43.36557397,1184.9,1184.7,4.00959]
[1610173763754,43.36557397,1184.9,1184.7,54.00959]
[1610173763954,43.36557397,1184.9,1184.8,50.0]
[1610173764354,13.4111134,1185.0,1184.4,50.0]
[1610173764755,43.37271515,1184.7,1184.4,50.0]
[1610173764956,43.37271515,1184.7,1184.5,50.0]
[1610173764957,13.41545959,1184.7,1184.5,50.0]
[1610173765355,4.00959,1184.6,1184.4,50.0]
[1610173765555,6.54119,1184.6,1183.9,4.00959]
[1610173765756,3.09496711,1184.5,1183.9,4.00959]
[1610173765956,3.09496711,1184.5,1184.0,50.0]
[1610173766155,49.91520431,1184.6,1184.0,50.0]
[1610173766356,45.90561431,1184.6,1184.1,50.0]
[1610173766657,2.5316,1184.6,1184.1,50.0]
[1610173767060,43.36663574,1184.8,1184.1,50.0]
[1610173767259,43.36663574,1184.8,1184.0,52.3344]
[1610173767460,4.00959,1184.7,1184.5,4.00959]
[1610173767659,4.00959,1184.7,1184.1,50.0]
[1610173768059,47.37654687,1184.7,1184.2,50.0]
[1610173768361,43.37076591,1184.6,1184.1,50.0]
[1610173768660,43.37076591,1184.6,1184.3,50.0]
[1610173769060,43.37076591,1184.6,1184.0,2.3344]
[1610173769061,43.37883154,1184.4,1184.2,50.0]
[1610173769460,4.00959,1184.3,1184.2,50.0]
[1610173769861,56.13614842,1184.3,1184.2,50.0]
[1610173770062,21.00739128,1184.3,1183.4,2.5361]
[1610173770264,23.53389128,1184.3,1183.4,2.5361]
[1610173770461,23.53389128,1184.3,1183.1,62.5136]
[1610173770662,43.39899005,1183.9,1183.1,62.5136]
[1610173770862,43.402358,1183.7,1183.1,62.5136]
[1610173771464,4.00959,1183.5,1183.3,4.00959]
[1610173771664,4.00959,1183.5,1183.1,62.5136]
[1610173772463,4.00959,1183.5,1182.2,0.25706605]
[1610173772664,7.41459,1183.5,1182.1,0.2575267]
[1610173773063,7.41459,1183.5,1182.0,69.87752627]
[1610173773464,4.00959,1182.8,1182.5,4.00959]
[1610173774264,1.6013,1183.4,1182.5,4.00959]
[1610173774464,1.6013,1183.4,1182.5,12.27229]
[1610173775365,1.6013,1183.4,1183.3,4.00959]
[1610173775668,2.453,1183.7,1183.3,4.00959]
[1610173776469,6.385,1183.9,1183.3,4.00959]
[1610173776870,43.38872705,1184.1,1183.3,4.00959]
[1610173777073,26.01775868,1184.1,1183.4,51.0328]
[1610173777272,45.90929846,1184.3,1183.4,51.0328]
[1610173777473,45.90929846,1184.3,1184.2,4.00959]
[1610173777873,2.5265,1184.3,1184.2,4.00959]
[1610173778072,43.37376859,1184.4,1184.2,4.00959]
[1610173778274,43.3711176,1184.6,1184.2,4.00959]
[1610173778573,43.36728066,1184.7,1184.2,4.00959]
[1610173778975,43.3599536,1184.8,1184.2,6.13799]
[1610173779374,43.35499693,1185.0,1184.7,4.00959]
[1610173779774,4.00959,1185.1,1184.7,5.81709]
[1610173780173,4.00959,1185.1,1184.7,1.8075]
[1610173780374,47.36184578,1185.1,1184.7,1.8075]
[1610173780773,43.35435621,1185.0,1184.2,2.1284]
[1610173781174,43.36285087,1184.8,1184.2,2.1284]
[1610173781473,4.00959,1184.4,1184.2,2.1284]
[1610173782073,4.00959,1184.4,1183.8,2.0503]
[1610173782676,47.38708502,1184.4,1183.8,2.0503]
[1610173783074,43.38214635,1184.3,1183.5,68.3052]
[1610173783475,43.38214635,1184.3,1184.2,4.00959]
[1610173783674,43.37456196,1184.5,1184.2,4.00959]